[Event "7th Leer Open-B 2024"]
[Site "Leer"]
[Date "2024.10.31"]
[Round "2.4"]
[White "Fize, Aleksandrs"]
[Black "Domschke, Stephan"]
[Result "1/2-1/2"]
[ECO "A41"]
[WhiteElo "1711"]
[BlackElo "1797"]
[Annotator "NA COMBH"]
[PlyCount "66"]
[EventDate "2024.10.14"]
[EventType "swiss"]
[EventCountry "GER"]
[SourceTitle "playchess.com"]
[Source "ChessBase"]
[SourceQuality "1"]
[TimeControl "40/5400+30:900+30"]

1. d4 {[%emt 0:03:33]} d6 {[%emt 0:00:13]} 2. Nc3 {[%emt 0:00:06]} Nf6 {[%emt 0:00:34]} 3. Bf4 {[%emt 0:00:10]} Bf5 {[%emt 0:02:14]} 4. f3 {[%emt 0:00:11]} Nbd7 {[%emt 0:00:56]} 5. e4 {[%emt 0:00:16]} Bg6 {[%emt 0:00:28]} 6. Bc4 {[%emt 0:00:41]} e5 {[%emt 0:01:14]} 7. Be3 {[%emt 0:00:04]} c6 {[%emt 0:01:15]} 8. Nge2 {[%emt 0:00:15]} Be7 {[%emt 0:02:41]} 9. Qd2 {[%emt 0:02:18]} b5 {[%emt 0:00:41]} 10. Bb3 {[%emt 0:00:11]} exd4 {[%emt 0:00:54]} 11. Nxd4 {[%emt 0:00:08]} Qc7 {[%emt 0:02:17]} 12. Rd1 {[%emt 0:00:28]} O-O {[%emt 0:02:00]} 13. h4 {[%emt 0:01:50]} h5 {[%emt 0:01:51]} 14. Kf2 {[%emt 0:01:14]} Nc5 {[%emt 0:01:47]} 15. Nde2 {[%emt 0:00:42]} Nxb3 {[%emt 0:01:19]} 16. cxb3 {[%emt 0:00:06]} b4 {[%emt 0:00:20]} 17. Na4 {[%emt 0:00:29]} c5 {[%emt 0:01:04]} 18. Rdg1 {[%emt 0:00:53]} Bxe4 {[%emt 0:00:59]} 19. g4 {[%emt 0:00:15]} Bxf3 {[%emt 0:01:59]} 20. Kxf3 {[%emt 0:00:07]} Qc6+ {[%emt 0:00:24]} 21. Kf4 {[%emt 0:00:21]} Qe4+ {[%emt 0:01:27]} 22. Kg3 {[%emt 0:01:19]} hxg4 {[%emt 0:05:18]} 23. Rf1 {[%emt 0:00:25]} Nh5+ {[%emt 0:01:15]} 24. Kh2 {[%emt 0:00:13]} Bxh4 {[%emt 0:01:37]} 25. Kg1 {[%emt 0:00:04]} g5 {[%emt 0:02:23]} 26. Bxg5 {[%emt 0:00:46]} Bxg5 {[%emt 0:03:21]} 27. Qxg5+ {[%emt 0:01:17]} Ng7 {[%emt 0:11:36]} 28. Rf2 {[%emt 0:00:00]} f6 {[%emt 0:03:39]} 29. Qh6 {[%emt 0:01:09]} Rae8 {[%emt 0:04:49]} 30. Ng3 {[%emt 0:02:15]} Qd3 {[%emt 0:00:46]} 31. Kg2 {[%emt 0:01:06]} Qd5+ {[%emt 0:00:54]} 32. Kf1 {[%emt 0:00:27]} Qd1+ {[%emt 0:00:27]} 33. Kg2 {[%emt 0:00:05] Check Result:0.00} Qd5+ {[%emt 0:00:20]} 1/2-1/2

[Event "7th Leer Open-B 2024"]
[Site "Leer"]
[Date "2024.10.31"]
[Round "2.4"]
[White "Pflug, Anton"]
[Black "Grooss, Jochen"]
[Result "1-0"]
[ECO "C02"]
[WhiteElo "1685"]
[BlackElo "1609"]
[Annotator "NA COMBH"]
[PlyCount "65"]
[EventDate "2024.10.14"]
[EventType "swiss"]
[EventCountry "GER"]
[SourceTitle "playchess.com"]
[Source "ChessBase"]
[SourceQuality "1"]
[TimeControl "40/5400+30:900+30"]

1. e4 {[%emt 0:00:06]} e6 {[%emt 0:00:06]} 2. d4 {[%emt 0:00:09]} d5 {[%emt 0:00:05]} 3. e5 {[%emt 0:00:08]} c5 {[%emt 0:00:06]} 4. c3 {[%emt 0:00:04]} Nc6 {[%emt 0:00:10]} 5. Nf3 {[%emt 0:00:11]} Qb6 {[%emt 0:00:07]} 6. a3 {[%emt 0:00:07]} c4 {[%emt 0:00:27]} 7. Be2 {[%emt 0:00:54]} Na5 {[%emt 0:01:29]} 8. Nbd2 {[%emt 0:01:04]} Bd7 {[%emt 0:03:50]} 9. O-O {[%emt 0:03:33]} Be7 {[%emt 0:03:05]} 10. Re1 {[%emt 0:08:49]} Nh6 {[%emt 0:04:48]} 11. Rb1 {[%emt 0:04:29]} Nf5 {[%emt 0:05:02]} 12. g3 {[%emt 0:07:08]} h5 {[%emt 0:08:11]} 13. h4 {[%emt 0:18:20]} f6 {[%emt 0:05:27]} 14. Kg2 {[%emt 0:03:45]} O-O-O {[%emt 0:05:23]} 15. Nf1 {[%emt 0:14:47]} Bxa3 {[%emt 0:02:18]} 16. b4 {[%emt 0:01:25]} Bxc1 {[%emt 0:01:05]} 17. Qxc1 {[%emt 0:00:39]} Nc6 {[%emt 0:01:39]} 18. Bd1 {[%emt 0:03:30]} Rdg8 {[%emt 0:07:38]} 19. Ne3 {[%emt 0:03:06]} Nh6 {[%emt 0:13:04]} 20. Bc2 {[%emt 0:04:45]} g5 {[%emt 0:07:36]} 21. exf6 {[%emt 0:03:54]} gxh4 {[%emt 0:00:24]} 22. Nxh4 {[%emt 0:00:34]} Qd8 {[%emt 0:00:22]} 23. b5 {[%emt 0:00:49]} Nb8 {[%emt 0:05:01]} 24. Qa3 {[%emt 0:05:10]} Qxf6 {[%emt 0:01:46]} 25. Qc5+ {[%emt 0:02:22]} Kd8 {[%emt 0:00:41]} 26. Qd6 {[%emt 0:00:56]} Qxh4 {[%emt 0:02:22]} 27. Qxb8+ {[%emt 0:00:20]} Bc8 {[%emt 0:00:09]} 28. Qd6+ {[%emt 0:01:57]} Bd7 {[%emt 0:00:41]} 29. Qb8+ {[%emt 0:01:22]} Bc8 {[%emt 0:21:58]} 30. b6 {[%emt 0:11:07]} axb6 {[%emt 0:00:00]} 31. Rxb6 {[%emt 0:00:00]} Nf7 {[%emt 0:00:00]} 32. Rxb7 {[%emt 0:00:00]} Qf4 {[%emt 0:00:00] Check Result:#8} 33. Qxf4 {[%emt 0:00:00]} 1-0

[Event "7th Leer Open-B 2024"]
[Site "Leer"]
[Date "2024.10.31"]
[Round "2.5"]
[White "Ulrich, Thomas M"]
[Black "Fuchs, Stefan"]
[Result "*"]
[ECO "B13"]
[WhiteElo "2278"]
[BlackElo "2178"]
[Annotator "RC"]
[PlyCount "43"]
[EventDate "2024.10.14"]
[EventType "swiss"]
[EventCountry "GER"]
[SourceTitle "playchess.com"]
[Source "ChessBase"]
[SourceQuality "1"]
[TimeControl "40/5400+30:900+30"]

1. e4 {[%emt 0:00:06]} c6 {[%emt 0:00:04]} 2. d4 {[%emt 0:00:12]} d5 {[%emt 0:00:09]} 3. exd5 {[%emt 0:01:47]} cxd5 {[%emt 0:00:07]} 4. Bd3 {[%emt 0:00:13]} Nc6 {[%emt 0:00:16]} 5. c3 {[%emt 0:00:09]} Nf6 {[%emt 0:00:11]} 6. h3 {[%emt 0:02:23]} e5 {[%emt 0:00:20]} 7. dxe5 {[%emt 0:01:47]} Nxe5 {[%emt 0:00:08]} 8. Qe2 {[%emt 0:00:51]} Qe7 {[%emt 0:01:07]} 9. Bb5+ {[%emt 0:04:57]} Bd7 {[%emt 0:16:10]} 10. Bxd7+ {[%emt 0:00:07]} Nexd7 {[%emt 0:10:18]} 11. Be3 {[%emt 0:04:56]} g6 {[%emt 0:08:07]} 12. Nf3 {[%emt 0:02:24]} Bg7 {[%emt 0:00:26]} 13. O-O {[%emt 0:00:10]} O-O {[%emt 0:00:47]} 14. Nbd2 {[%emt 0:02:45]} Nc5 {[%emt 0:06:25]} 15. Rfe1 {[%emt 0:04:10]} Rfe8 {[%emt 0:01:46]} 16. Qb5 {[%emt 0:01:08]} Nce4 {[%emt 0:52:09]} 17. Nxe4 {[%emt 1:10:55]} dxe4 {[%emt 0:00:30]} 18. Bc5 {[%emt 0:00:30]} Qc7 {[%emt 0:00:30]} 19. Nd2 {[%emt 0:00:30]} Re5 {[%emt 0:00:30]} 20. Nf3 {[%emt 0:00:30]} Ree8 21. Be3 {[%emt 0:00:30]} Qe7 {[%emt 0:01:00]} 22. Nd4 {[%emt 0:00:30]} *

[Event "7th Leer Open-B 2024"]
[Site "Leer"]
[Date "2024.10.31"]
[Round "2.5"]
[White "Greiner, Jan Oluf"]
[Black "Nechitaylo, Lev"]
[Result "0-1"]
[ECO "B34"]
[WhiteElo "1539"]
[BlackElo "1732"]
[Annotator "NA COMBH"]
[PlyCount "94"]
[EventDate "2024.10.14"]
[EventType "swiss"]
[EventCountry "GER"]
[SourceTitle "playchess.com"]
[Source "ChessBase"]
[SourceQuality "1"]
[TimeControl "40/5400+30:900+30"]

1. e4 {[%emt 0:00:03]} c5 {[%emt 0:00:03]} 2. Nf3 {[%emt 0:00:04]} Nc6 {[%emt 0:00:08]} 3. Bc4 {[%emt 0:00:44]} Nf6 {[%emt 0:00:04]} 4. Nc3 {[%emt 0:00:08]} g6 {[%emt 0:00:06]} 5. d4 {[%emt 0:01:25]} cxd4 {[%emt 0:00:10]} 6. Nxd4 {[%emt 0:00:08]} Bg7 {[%emt 0:00:04]} 7. Nxc6 {[%emt 0:00:32]} bxc6 {[%emt 0:00:06]} 8. O-O {[%emt 0:00:50]} O-O {[%emt 0:00:16]} 9. Re1 {[%emt 0:01:15]} Bb7 {[%emt 0:00:22]} 10. h3 {[%emt 0:01:21]} e6 {[%emt 0:00:17]} 11. Bg5 {[%emt 0:00:31]} Qc7 {[%emt 0:00:17]} 12. Qf3 {[%emt 0:06:42]} Ne8 {[%emt 0:00:22]} 13. Be7 {[%emt 1:23:17]} d5 {[%emt 0:00:54]} 14. Bxf8 {[%emt 0:00:00]} Kxf8 {[%emt 0:00:14]} 15. Bb3 {[%emt 0:00:00]} dxe4 {[%emt 0:02:39]} 16. Qxe4 {[%emt 0:00:00]} c5 {[%emt 0:00:22]} 17. Qe2 {[%emt 0:00:00]} Nd6 {[%emt 0:00:35]} 18. Nb5 {[%emt 0:00:00]} Qc6 {[%emt 0:01:40]} 19. f3 {[%emt 0:00:00]} Qxb5 {[%emt 0:00:32]} 20. Qxb5 {[%emt 0:03:30]} Nxb5 {[%emt 0:00:06]} 21. c3 {[%emt 0:00:00]} Rd8 {[%emt 0:00:21]} 22. Rad1 {[%emt 0:00:00]} Rxd1 {[%emt 0:02:27]} 23. Rxd1 {[%emt 0:00:00]} Ke7 {[%emt 0:00:09]} 24. Ba4 {[%emt 0:00:00]} Nd6 {[%emt 0:00:10]} 25. Kf2 {[%emt 0:00:00]} Bd5 {[%emt 0:04:05]} 26. Bb3 {[%emt 0:00:00]} Bxb3 {[%emt 0:00:22]} 27. axb3 {[%emt 0:00:00]} c4 {[%emt 0:00:05]} 28. b4 {[%emt 0:00:00]} Kd7 {[%emt 0:00:51]} 29. Ra1 {[%emt 0:00:00]} Nb5 {[%emt 0:00:42]} 30. Rd1+ {[%emt 0:00:00]} Kc7 {[%emt 0:00:24]} 31. f4 {[%emt 0:00:00]} f5 {[%emt 0:01:27]} 32. g4 {[%emt 0:00:00]} Bf6 {[%emt 0:00:46]} 33. Kg3 {[%emt 0:00:00]} Kc6 {[%emt 0:00:37]} 34. gxf5 {[%emt 0:00:00]} exf5 {[%emt 0:02:57]} 35. Ra1 {[%emt 0:00:00]} Kd5 {[%emt 0:04:17]} 36. Rd1+ {[%emt 0:00:00]} Ke4 {[%emt 0:00:10]} 37. Rd7 {[%emt 0:00:00]} Nxc3 {[%emt 0:02:47]} 38. bxc3 {[%emt 0:00:00]} Bxc3 {[%emt 0:00:05]} 39. b5 {[%emt 0:00:00]} Bd4 {[%emt 0:00:06]} 40. Re7+ {[%emt 0:00:00]} Kd3 {[%emt 0:00:09]} 41. Rxh7 {[%emt 0:00:00]} c3 {[%emt 0:15:53]} 42. Rc7 {[%emt 0:00:00]} c2 {[%emt 0:00:05]} 43. Kh4 {[%emt 0:00:00]} Bc3 {[%emt 0:00:22]} 44. Rd7+ {[%emt 0:00:00]} Ke3 {[%emt 0:00:19]} 45. Rxa7 {[%emt 0:00:00]} c1=Q {[%emt 0:00:06]} 46. b6 {[%emt 0:00:00]} Qg1 {[%emt 0:00:18]} 47. b7 {[%emt 0:00:00] Check Result:?ev?} Be1# {[%emt 0:00:05]} 0-1

[Event "7th Leer Open-B 2024"]
[Site "Leer"]
[Date "2024.10.31"]
[Round "2.6"]
[White "Neumann, Hannes"]
[Black "Nair, Pranav Prasobh"]
[Result "1-0"]
[ECO "C58"]
[WhiteElo "1731"]
[BlackElo "1495"]
[Annotator "NA COMBH"]
[PlyCount "113"]
[EventDate "2024.10.14"]
[EventType "swiss"]
[EventCountry "GER"]
[SourceTitle "playchess.com"]
[Source "ChessBase"]
[SourceQuality "1"]
[TimeControl "40/5400+30:900+30"]

1. e4 {[%emt 0:00:07]} e5 {[%emt 0:02:00]} 2. Nf3 {[%emt 0:00:49]} Nc6 {[%emt 0:00:18]} 3. Bc4 {[%emt 0:00:09]} Nf6 {[%emt 0:00:29]} 4. Ng5 {[%emt 0:00:14]} d5 {[%emt 0:00:25]} 5. exd5 {[%emt 0:00:09]} Na5 {[%emt 0:00:16]} 6. Bb5+ {[%emt 0:00:09]} c6 {[%emt 0:00:09]} 7. dxc6 {[%emt 0:00:06]} bxc6 {[%emt 0:00:13]} 8. Qf3 {[%emt 0:00:10]} Bb7 {[%emt 0:01:55]} 9. Bd3 {[%emt 0:01:05]} Bd6 {[%emt 0:02:27]} 10. b3 {[%emt 0:02:45]} h6 {[%emt 0:02:35]} 11. Ne4 {[%emt 0:00:17]} Nxe4 {[%emt 0:00:50]} 12. Bxe4 {[%emt 0:00:15]} Rc8 {[%emt 0:00:31]} 13. O-O {[%emt 0:03:12]} Qe7 {[%emt 0:02:54]} 14. Bb2 {[%emt 0:03:49]} c5 {[%emt 0:01:30]} 15. Bxb7 {[%emt 0:00:13]} Qxb7 {[%emt 0:00:06]} 16. Qg3 {[%emt 0:01:33]} f6 {[%emt 0:00:37]} 17. Qe3 {[%emt 0:02:11]} O-O {[%emt 0:04:30]} 18. f4 {[%emt 0:01:01]} Rfe8 {[%emt 0:02:31]} 19. fxe5 {[%emt 1:21:46]} Nc4 {[%emt 0:03:17]} 20. Qd3 {[%emt 0:00:00]} Bxe5 {[%emt 0:04:27]} 21. Qxc4+ {[%emt 0:00:00]} Kh8 {[%emt 0:01:17]} 22. Bxe5 {[%emt 0:00:00]} Rxe5 {[%emt 0:00:38]} 23. Nc3 {[%emt 0:00:00]} Rd8 {[%emt 0:02:16]} 24. d3 {[%emt 0:00:00]} a6 {[%emt 0:01:47]} 25. Rae1 {[%emt 0:00:00]} Rg5 {[%emt 0:05:46]} 26. Qe4 {[%emt 0:00:00]} Qd7 {[%emt 0:01:18]} 27. Qe7 {[%emt 0:00:00]} Qd4+ {[%emt 0:01:04]} 28. Kh1 {[%emt 0:00:00]} Rg8 {[%emt 0:05:02]} 29. Ne4 {[%emt 0:00:00]} Re5 {[%emt 0:01:35]} 30. Qa7 {[%emt 0:00:00]} f5 {[%emt 0:02:00]} 31. Ng3 {[%emt 0:00:00]} Rxe1 {[%emt 0:03:58]} 32. Rxe1 {[%emt 0:00:00]} Qf2 {[%emt 0:00:42]} 33. Rf1 {[%emt 0:00:00]} Qxc2 {[%emt 0:00:18]} 34. Qxa6 {[%emt 0:00:00]} Rf8 {[%emt 0:00:50]} 35. h3 {[%emt 0:00:00]} Rf6 {[%emt 0:02:04]} 36. Qc8+ {[%emt 0:00:00]} Kh7 {[%emt 0:00:10]} 37. Nh5 {[%emt 0:00:00]} Rf7 {[%emt 0:01:37]} 38. Qe6 {[%emt 0:00:00]} Qxd3 {[%emt 0:02:18]} 39. Qxf7 {[%emt 0:00:00]} Qxf1+ {[%emt 0:00:05]} 40. Kh2 {[%emt 0:00:00]} Qa1 {[%emt 0:00:06]} 41. Qxg7+ {[%emt 0:00:00]} Qxg7 {[%emt 0:15:10]} 42. Nxg7 {[%emt 0:00:00]} Kxg7 {[%emt 0:00:20]} 43. a4 {[%emt 0:00:00]} Kf7 {[%emt 0:00:10]} 44. a5 {[%emt 0:00:00]} Ke6 {[%emt 0:00:15]} 45. a6 {[%emt 0:00:00]} Ke5 {[%emt 0:00:14]} 46. a7 {[%emt 0:00:00]} Kd4 {[%emt 0:00:06]} 47. a8=Q {[%emt 0:00:00]} Kc3 {[%emt 0:00:12]} 48. Qa5+ {[%emt 0:00:00]} Kxb3 {[%emt 0:00:06]} 49. Qxc5 {[%emt 0:00:00]} f4 {[%emt 0:00:08]} 50. Kg1 {[%emt 0:00:00]} h5 {[%emt 0:00:14]} 51. Kf2 {[%emt 0:00:00]} h4 {[%emt 0:00:06]} 52. Ke2 {[%emt 0:00:00]} f3+ {[%emt 0:00:08]} 53. gxf3 {[%emt 0:00:00]} Kb2 {[%emt 0:00:03]} 54. Kd3 {[%emt 0:00:00]} Kb3 {[%emt 0:01:04]} 55. Qb5+ {[%emt 0:00:00]} Ka2 {[%emt 0:00:11]} 56. Kc2 {[%emt 0:00:00]} Ka1 {[%emt 0:00:18] Check Result:?ev?} 57. Qa6# {[%emt 0:00:00]} 1-0

[Event "7th Leer Open-B 2024"]
[Site "Leer"]
[Date "2024.10.31"]
[Round "2.7"]
[White "Wohlrabe, Joerg"]
[Black "Voigt, Dominik"]
[Result "0-1"]
[ECO "B13"]
[WhiteElo "1698"]
[BlackElo "1781"]
[Annotator "NA COMBH"]
[PlyCount "58"]
[EventDate "2024.10.14"]
[EventType "swiss"]
[EventCountry "GER"]
[SourceTitle "playchess.com"]
[Source "ChessBase"]
[SourceQuality "1"]
[TimeControl "40/5400+30:900+30"]

1. e4 {[%emt 0:00:03]} c6 {[%emt 0:00:07]} 2. d4 {[%emt 0:00:04]} d5 {[%emt 0:00:04]} 3. exd5 {[%emt 0:00:04]} cxd5 {[%emt 0:00:05]} 4. Nf3 {[%emt 0:00:07]} Nc6 {[%emt 0:00:05]} 5. Be2 {[%emt 0:00:21]} Bf5 {[%emt 0:00:23]} 6. c3 {[%emt 0:00:36]} e6 {[%emt 0:00:46]} 7. a4 {[%emt 0:00:43]} Bd6 {[%emt 0:01:06]} 8. b4 {[%emt 0:04:39]} Nf6 {[%emt 0:05:25]} 9. h3 {[%emt 0:03:00]} h6 {[%emt 0:03:19]} 10. Bd3 {[%emt 0:01:58]} Ne4 {[%emt 0:04:07]} 11. O-O {[%emt 0:02:38]} O-O {[%emt 0:01:29]} 12. Re1 {[%emt 0:06:08]} Rc8 {[%emt 0:07:22]} 13. Bxe4 {[%emt 0:03:00]} Bxe4 {[%emt 0:01:29]} 14. Nbd2 {[%emt 0:04:40]} Bh7 {[%emt 0:09:22]} 15. Nb3 {[%emt 0:04:24]} Nxb4 {[%emt 0:02:04]} 16. cxb4 {[%emt 0:00:56]} Bc2 {[%emt 0:00:08]} 17. Qe2 {[%emt 0:15:01]} Bxb3 {[%emt 0:00:37]} 18. Qb2 {[%emt 0:01:40]} Bc2 {[%emt 0:04:11]} 19. Be3 {[%emt 0:03:09]} Be4 {[%emt 0:03:34]} 20. Rac1 {[%emt 0:02:27]} Qe7 {[%emt 0:10:21]} 21. Rxc8 {[%emt 0:06:29]} Rxc8 {[%emt 0:00:05]} 22. b5 {[%emt 0:06:42]} Rc2 {[%emt 0:11:02]} 23. Qa1 {[%emt 0:02:16]} Bb4 {[%emt 0:08:15]} 24. Rd1 {[%emt 0:02:03]} Bc3 {[%emt 0:00:49]} 25. Qb1 {[%emt 0:00:53]} Qa3 {[%emt 0:08:00]} 26. Ne1 {[%emt 0:02:33]} Bxe1 {[%emt 0:03:04]} 27. Rxe1 {[%emt 0:00:11]} Rxf2 {[%emt 0:00:29]} 28. Qd1 {[%emt 0:01:20]} Rxg2+ {[%emt 0:00:38]} 29. Kf1 {[%emt 0:00:08] Check Result:-11.44} Qd6 {[%emt 0:16:34]} 0-1

[Event "7th Leer Open-B 2024"]
[Site "Leer"]
[Date "2024.10.31"]
[Round "2.7"]
[White "Kutz, Henning Jasper"]
[Black "Aleanakian, Gabriel"]
[Result "1-0"]
[ECO "B31"]
[WhiteElo "1547"]
[BlackElo "1721"]
[Annotator "NA COMBH"]
[PlyCount "77"]
[EventDate "2024.10.14"]
[EventType "swiss"]
[EventCountry "GER"]
[SourceTitle "playchess.com"]
[Source "ChessBase"]
[SourceQuality "1"]
[TimeControl "40/5400+30:900+30"]

1. e4 {[%emt 0:00:02]} c5 {[%emt 0:00:19]} 2. Nf3 {[%emt 0:00:16]} Nc6 {[%emt 0:00:07]} 3. Nc3 {[%emt 0:00:24]} g6 {[%emt 0:00:20]} 4. Bb5 {[%emt 0:00:44]} Bg7 {[%emt 0:00:29]} 5. O-O {[%emt 0:00:33]} Nf6 {[%emt 0:00:17]} 6. d3 {[%emt 0:00:21]} O-O {[%emt 0:00:19]} 7. h3 {[%emt 0:00:42]} a6 {[%emt 0:01:14]} 8. Bxc6 {[%emt 0:00:16]} dxc6 {[%emt 0:00:16]} 9. Bg5 {[%emt 0:00:26]} Be6 {[%emt 0:01:25]} 10. Rb1 {[%emt 0:01:19]} Nd7 {[%emt 0:00:56]} 11. a3 {[%emt 0:00:28]} Re8 {[%emt 0:02:40]} 12. Qd2 {[%emt 0:00:32]} Ne5 {[%emt 0:01:09]} 13. Nxe5 {[%emt 0:00:51]} Bxe5 {[%emt 0:00:15]} 14. Bh6 {[%emt 0:00:46]} b5 {[%emt 0:03:19]} 15. Qe3 {[%emt 0:03:11]} Qd4 {[%emt 0:02:23]} 16. Qd2 {[%emt 0:01:21]} b4 {[%emt 0:03:50]} 17. Ne2 {[%emt 0:01:26]} Qd6 {[%emt 0:00:48]} 18. axb4 {[%emt 0:00:42]} cxb4 {[%emt 0:00:27]} 19. d4 {[%emt 0:01:06]} a5 {[%emt 0:02:35]} 20. dxe5 {[%emt 0:00:39]} Qxe5 {[%emt 0:00:45]} 21. Qd4 {[%emt 0:01:06]} Qf6 {[%emt 0:01:23]} 22. Qxf6 {[%emt 0:00:50]} exf6 {[%emt 0:00:10]} 23. Be3 {[%emt 0:00:45]} Bc4 {[%emt 0:00:27]} 24. Rfe1 {[%emt 0:01:28]} f5 {[%emt 0:00:40]} 25. exf5 {[%emt 0:00:43]} gxf5 {[%emt 0:00:05]} 26. b3 {[%emt 0:00:40]} Bb5 {[%emt 0:00:21]} 27. Nd4 {[%emt 0:01:04]} a4 {[%emt 0:02:31]} 28. bxa4 {[%emt 0:02:20]} Bxa4 {[%emt 0:00:19]} 29. Ra1 {[%emt 0:00:44]} c5 {[%emt 0:00:48]} 30. Nxf5 {[%emt 0:01:38]} Re5 {[%emt 0:00:38]} 31. Nd6 {[%emt 0:02:39]} Rd5 {[%emt 0:01:28]} 32. Nc4 {[%emt 0:01:15]} Bc6 {[%emt 0:03:04]} 33. Rxa8+ {[%emt 0:00:48]} Bxa8 {[%emt 0:00:12]} 34. Nb6 {[%emt 0:00:39]} Rd8 {[%emt 0:00:22]} 35. Bxc5 {[%emt 0:00:24]} Bc6 {[%emt 0:01:05]} 36. Bxb4 {[%emt 0:02:18]} Rd4 {[%emt 0:00:19]} 37. Bc3 {[%emt 0:00:55]} Rd6 {[%emt 0:00:57]} 38. Nc4 {[%emt 0:01:11]} Bb5 {[%emt 0:00:45] Check Result:#9} 39. Nxd6 {[%emt 0:00:41]} 1-0

[Event "7th Leer Open-B 2024"]
[Site "Leer"]
[Date "2024.10.31"]
[Round "2.8"]
[White "Marzik, Arne"]
[Black "Seeber, Helmut"]
[Result "1-0"]
[ECO "E09"]
[WhiteElo "1780"]
[BlackElo "1694"]
[Annotator "NA COMBH"]
[PlyCount "57"]
[EventDate "2024.10.14"]
[EventType "swiss"]
[EventCountry "GER"]
[SourceTitle "playchess.com"]
[Source "ChessBase"]
[SourceQuality "1"]
[TimeControl "40/5400+30:900+30"]

1. d4 {[%emt 0:04:40]} d5 {[%emt 0:01:51]} 2. Nf3 {[%emt 0:00:08]} Nf6 {[%emt 0:00:38]} 3. g3 {[%emt 0:00:13]} e6 {[%emt 0:00:43]} 4. c4 {[%emt 0:00:31]} c6 {[%emt 0:00:12]} 5. Bg2 {[%emt 0:00:08]} Nbd7 {[%emt 0:00:17]} 6. O-O {[%emt 0:00:08]} Be7 {[%emt 0:00:26]} 7. Qc2 {[%emt 0:00:28]} O-O {[%emt 0:00:26]} 8. Nbd2 {[%emt 0:00:08]} h6 {[%emt 0:01:02]} 9. e4 {[%emt 0:00:09]} dxc4 {[%emt 0:00:49]} 10. Nxc4 {[%emt 0:03:28]} b6 {[%emt 0:00:38]} 11. Bf4 {[%emt 0:01:30]} Ba6 {[%emt 0:00:22]} 12. Rfd1 {[%emt 0:00:28]} Rc8 {[%emt 0:00:17]} 13. Nd6 {[%emt 0:03:04]} Bxd6 {[%emt 0:00:57]} 14. Bxd6 {[%emt 0:00:15]} Re8 {[%emt 0:00:07]} 15. Ne5 {[%emt 0:05:24]} c5 {[%emt 0:03:08]} 16. Qa4 {[%emt 0:11:26]} Be2 {[%emt 0:02:46]} 17. Rd2 {[%emt 0:01:26]} Bh5 {[%emt 0:00:16]} 18. Nc6 {[%emt 0:02:41]} Rxc6 {[%emt 0:13:03]} 19. Qxc6 {[%emt 0:00:08]} Nb8 {[%emt 0:00:11]} 20. Bxb8 {[%emt 0:00:54]} Qxb8 {[%emt 0:03:05]} 21. dxc5 {[%emt 0:00:00]} Rc8 {[%emt 0:01:01]} 22. Qd6 {[%emt 0:02:21]} bxc5 {[%emt 0:02:46]} 23. Qxb8 {[%emt 0:04:24]} Rxb8 {[%emt 0:00:11]} 24. Rc1 {[%emt 0:01:11]} Rc8 {[%emt 0:01:00]} 25. e5 {[%emt 0:00:30]} Nd5 {[%emt 0:02:02]} 26. Bxd5 {[%emt 0:00:31]} exd5 {[%emt 0:00:34]} 27. Rxd5 {[%emt 0:00:01]} c4 {[%emt 0:01:13]} 28. e6 {[%emt 0:00:29]} fxe6 {[%emt 0:00:33] Check Result:9.68} 29. Rxh5 {[%emt 0:00:15]} 1-0

[Event "7th Leer Open-B 2024"]
[Site "Leer"]
[Date "2024.10.31"]
[Round "2.8"]
[White "Greiner, Andre"]
[Black "Karich, Oliver"]
[Result "0-1"]
[ECO "C10"]
[WhiteElo "1476"]
[BlackElo "1711"]
[Annotator "NA COMBH"]
[PlyCount "40"]
[EventDate "2024.10.14"]
[EventType "swiss"]
[EventCountry "GER"]
[SourceTitle "playchess.com"]
[Source "ChessBase"]
[SourceQuality "1"]
[TimeControl "40/5400+30:900+30"]

1. d4 {[%emt 0:00:08]} d5 {[%emt 0:00:06]} 2. Nc3 {[%emt 0:00:09]} e6 {[%emt 0:00:06]} 3. e4 {[%emt 0:00:25]} dxe4 {[%emt 0:00:43]} 4. Nxe4 {[%emt 0:00:14]} Be7 {[%emt 0:00:04]} 5. Bd3 {[%emt 0:01:23]} Nf6 {[%emt 0:00:07]} 6. Nf3 {[%emt 0:00:58]} O-O {[%emt 0:00:22]} 7. h3 {[%emt 0:03:30]} b6 {[%emt 0:02:15]} 8. Neg5 {[%emt 0:00:35]} h6 {[%emt 0:00:16]} 9. Ne4 {[%emt 0:06:02]} Bb7 {[%emt 0:00:09]} 10. Nxf6+ {[%emt 0:05:10]} Bxf6 {[%emt 0:00:17]} 11. Bc4 {[%emt 0:01:28]} Nd7 {[%emt 0:03:40]} 12. Bd2 {[%emt 0:01:33]} c5 {[%emt 0:03:17]} 13. c3 {[%emt 0:02:22]} Rc8 {[%emt 0:01:09]} 14. Qa4 {[%emt 0:01:25]} cxd4 {[%emt 0:02:10]} 15. Qxa7 {[%emt 0:01:34]} dxc3 {[%emt 0:01:28]} 16. Bxc3 {[%emt 0:03:09]} Bxc3+ {[%emt 0:01:45]} 17. bxc3 {[%emt 0:00:26]} Qc7 {[%emt 0:05:47]} 18. Qa4 {[%emt 0:02:37]} Qxc4 {[%emt 0:01:51]} 19. Qxd7 {[%emt 0:06:33]} Qxc3+ {[%emt 0:00:14]} 20. Ke2 {[%emt 0:01:03] Check Result:-#3} Ba6+ {[%emt 1:14:44]} 0-1

[Event "7th Leer Open-B 2024"]
[Site "Leer"]
[Date "2024.10.31"]
[Round "2.10"]
[White "Sviridov, Vitaliy"]
[Black "Kamps, Manuel"]
[Result "1-0"]
[ECO "A48"]
[WhiteElo "1772"]
[BlackElo "1691"]
[Annotator "NA COMBH"]
[PlyCount "63"]
[EventDate "2024.10.14"]
[EventType "swiss"]
[EventCountry "GER"]
[SourceTitle "playchess.com"]
[Source "ChessBase"]
[SourceQuality "1"]
[TimeControl "40/5400+30:900+30"]

1. d4 {[%emt 0:00:58]} Nf6 {[%emt 0:00:03]} 2. Nf3 {[%emt 0:00:03]} g6 {[%emt 0:00:07]} 3. Bf4 {[%emt 0:00:35]} Bg7 {[%emt 0:00:06]} 4. h3 {[%emt 0:01:37]} d6 {[%emt 0:00:23]} 5. e3 {[%emt 0:00:50]} Nbd7 {[%emt 0:00:20]} 6. Be2 {[%emt 0:00:16]} O-O {[%emt 0:00:09]} 7. O-O {[%emt 0:00:03]} Nh5 {[%emt 0:05:14]} 8. Bh2 {[%emt 0:00:18]} f5 {[%emt 0:00:24]} 9. Ng5 {[%emt 0:00:58]} Ndf6 {[%emt 0:01:35]} 10. g4 {[%emt 0:05:18]} Bh6 {[%emt 0:00:28]} 11. gxh5 {[%emt 0:07:32]} Bxg5 {[%emt 0:00:07]} 12. hxg6 {[%emt 0:02:01]} hxg6 {[%emt 0:00:37]} 13. f4 {[%emt 0:00:42]} Bh4 {[%emt 0:01:26]} 14. Nd2 {[%emt 0:00:27]} Nd5 {[%emt 0:01:21]} 15. Bc4 {[%emt 0:01:49]} e6 {[%emt 0:00:22]} 16. Qf3 {[%emt 0:00:44]} Nb6 {[%emt 0:02:18]} 17. Bb3 {[%emt 0:00:53]} d5 {[%emt 0:03:46]} 18. Bg3 {[%emt 0:01:08]} Kg7 {[%emt 0:02:19]} 19. Qf2 {[%emt 0:01:07]} Bf6 {[%emt 0:01:46]} 20. Qg2 {[%emt 0:00:58]} Nd7 {[%emt 0:02:14]} 21. Kf2 {[%emt 0:00:13]} c5 {[%emt 0:00:43]} 22. c3 {[%emt 0:00:11]} Qa5 {[%emt 0:03:34]} 23. Nf3 {[%emt 0:01:15]} c4 {[%emt 0:01:42]} 24. Bc2 {[%emt 0:00:40]} b5 {[%emt 0:00:58]} 25. a3 {[%emt 0:00:19]} Nb6 {[%emt 0:00:29]} 26. Rg1 {[%emt 0:03:34]} Rh8 {[%emt 0:03:38]} 27. Bh4 {[%emt 0:08:30]} Rh6 {[%emt 0:04:39]} 28. Bxf6+ {[%emt 0:00:59]} Kxf6 {[%emt 0:00:07]} 29. Qg5+ {[%emt 0:00:12]} Kg7 {[%emt 0:02:45]} 30. Qe7+ {[%emt 0:00:05]} Kg8 {[%emt 0:01:19]} 31. Ne5 {[%emt 0:01:00]} Qa6 {[%emt 0:03:45] Check Result:7.17} 32. Qf7+ {[%emt 0:00:09]} 1-0